Departmental Area,Entity,Payment Date,Expense type,Expense Area,Supplier Name,Payment Reference,      Invoice Distribution Amount      ,Description,Supplier Type,Expenditure Type
UK Statistics Family,Office for National Statistics,01/02/2023,Buildings Under Construction,Property Newport,Vinci Construction UK Limited,255307," 31,920.00 ",Facilities Mangement Services,Large,Programme Expenditure
UK Statistics Family,Office for National Statistics,01/02/2023,Buildings Under Construction,Property Titchfield,Vinci Construction UK Limited,255307," 62,432.10 ",Facilities Mangement Services,Large,Programme Expenditure
UK Statistics Family,Office for National Statistics,01/02/2023,Exp - Purchase Of Goods/Services - Contractors,Testing,La International,255316," 21,561.82 ",Information Management Services,SME,Programme Expenditure
UK Statistics Family,Office for National Statistics,01/02/2023,Exp - Purchase Of Goods/Services - Contractors,Testing,La International,255316," 2,658.71 ",Information Management Services,SME,Programme Expenditure
UK Statistics Family,Office for National Statistics,01/02/2023,Exp - Purchase Of Goods/Services - Contractors,Testing,La International,255316," 1,990.59 ",Information Management Services,SME,Programme Expenditure
UK Statistics Family,Office for National Statistics,01/02/2023,Exp - Purchase Of Goods/Services - Contractors,Data Architecture,La International,255316," 25,568.28 ",Information Management Services,SME,Programme Expenditure
UK Statistics Family,Office for National Statistics,01/02/2023,Exp - Purchase Of Goods/Services - Contractors,Data Architecture,La International,255316," 4,281.18 ",Information Management Services,SME,Programme Expenditure
UK Statistics Family,Office for National Statistics,01/02/2023,Exp - Purchase Of Goods/Services - Contractors,Tech Delivery Next Gen IT And Infrastructure,La International,255316," 3,844.62 ",Information Management Services,SME,Programme Expenditure
UK Statistics Family,Office for National Statistics,01/02/2023,Exp - Purchase Of Goods/Services - Contractors,IT Applications,La International,255316," 4,581.18 ",Information Management Services,SME,Programme Expenditure
UK Statistics Family,Office for National Statistics,01/02/2023,Exp - Purchase Of Goods/Services - Contractors,Data Science Campus,La International,255316," 3,332.02 ",Information Management Services,SME,Programme Expenditure
UK Statistics Family,Office for National Statistics,01/02/2023,Surveys,GSS Strategy Delivery,National Institute of Economic and Social Research,255317," 47,010.00 ",Statistical Services,SME,Programme Expenditure
UK Statistics Family,Office for National Statistics,01/02/2023,Specialist User Software And Hardware,Finance,CGI IT UK Limited,255324," 39,744.88 ",Payroll Services,Large,Programme Expenditure
UK Statistics Family,Office for National Statistics,01/02/2023,Exp - Purchase Of Goods/Services - Incentive Payments,Survey Management,Sodexo Motivation Solutions U.K. ltd,255325," 1,691.61 ",Survey Response Incentive Vouchers,Large,Programme Expenditure
UK Statistics Family,Office for National Statistics,01/02/2023,Exp - Purchase Of Goods/Services - Incentive Payments,Survey Management,Sodexo Motivation Solutions U.K. ltd,255325, 680.96 ,Survey Response Incentive Vouchers,Large,Programme Expenditure
UK Statistics Family,Office for National Statistics,01/02/2023,Exp - Purchase Of Goods/Services - Incentive Payments,Survey Management,Sodexo Motivation Solutions U.K. ltd,255325," 2,330.69 ",Survey Response Incentive Vouchers,Large,Programme Expenditure
UK Statistics Family,Office for National Statistics,01/02/2023,Exp - Purchase Of Goods/Services - Incentive Payments,Survey Management,Sodexo Motivation Solutions U.K. ltd,255325," 28,481.96 ",Survey Response Incentive Vouchers,Large,Programme Expenditure
UK Statistics Family,Office for National Statistics,01/02/2023,Exp - Purchase Of Goods/Services - Incentive Payments,Survey Management,Sodexo Motivation Solutions U.K. ltd,255325," 13,413.00 ",Survey Response Incentive Vouchers,Large,Programme Expenditure
UK Statistics Family,Office for National Statistics,01/02/2023,Exp - Purchase Of Goods/Services - Incentive Payments,Interviewer Support,Sodexo Motivation Solutions U.K. ltd,255325, 138.13 ,Survey Response Incentive Vouchers,Large,Programme Expenditure
UK Statistics Family,Office for National Statistics,01/02/2023,Exp - Purchase Of Goods/Services - Incentive Payments,Survey Management,Sodexo Motivation Solutions U.K. ltd,255325," 5,390.85 ",Survey Response Incentive Vouchers,Large,Programme Expenditure
UK Statistics Family,Office for National Statistics,01/02/2023,Exp - Purchase Of Goods/Services - Incentive Payments,Social Surveys Division,Sodexo Motivation Solutions U.K. ltd,255325, 148.03 ,Survey Response Incentive Vouchers,Large,Programme Expenditure
UK Statistics Family,Office for National Statistics,01/02/2023,Exp - Purchase Of Goods/Services - Contractors,Testing,LA FOSSE ASSOCIATES LIMITED,255326," 15,120.00 ",Information Management Services,Large,Programme Expenditure
UK Statistics Family,Office for National Statistics,01/02/2023,Exp - Purchase Of Goods/Services - Contractors,Data Architecture,LA FOSSE ASSOCIATES LIMITED,255326," 16,740.00 ",Information Management Services,Large,Programme Expenditure
UK Statistics Family,Office for National Statistics,01/02/2023,Exp - Purchase Of Goods/Services - Contractors,CDIO UNGP,LA FOSSE ASSOCIATES LIMITED,255326," 14,580.00 ",Information Management Services,Large,Programme Expenditure
UK Statistics Family,Office for National Statistics,01/02/2023,Non IT Maintenance And Hire,Property Services,Greater Manchester Combined Authority,255336," 2,159.66 ",Rental Charges,SME,Programme Expenditure
UK Statistics Family,Office for National Statistics,01/02/2023,Accommodation & Building Management,Property Manchester,Greater Manchester Combined Authority,255336," 15,255.81 ",Rental Charges,SME,Programme Expenditure
UK Statistics Family,Office for National Statistics,01/02/2023,Rent Payable,Property Manchester,Greater Manchester Combined Authority,255336," 1,267.63 ",Rental Charges,SME,Programme Expenditure
UK Statistics Family,Office for National Statistics,01/02/2023,Non IT Maintenance And Hire,Property Manchester,Greater Manchester Combined Authority,255336," 9,871.69 ",Rental Charges,SME,Programme Expenditure
UK Statistics Family,Office for National Statistics,02/02/2023,Exp - Purchase Of Goods/Services - Other ICT Costs Software,Finance,Scc,255592," 28,737.79 ",Software Licenses,Large,Programme Expenditure
UK Statistics Family,Office for National Statistics,02/02/2023,Other Professional Services,People Solutions,Government Legal Department,255599," 27,034.26 ",Legal Services,Large,Programme Expenditure
UK Statistics Family,Office for National Statistics,02/02/2023,Exp - Purchase Of Goods And Services Consultants,Digital Publishing,Methods Business & Digital Technology Ltd,255600," 48,000.00 ",Information Management Services,Large,Programme Expenditure
UK Statistics Family,Office for National Statistics,02/02/2023,Exp - Purchase Of Goods And Services Consultants,Digital Media,Methods Business & Digital Technology Ltd,255600," 108,000.00 ",Information Management Services,Large,Programme Expenditure
UK Statistics Family,Office for National Statistics,02/02/2023,Exp - Purchase Of Goods And Services Consultants,Digital Media,Methods Business & Digital Technology Ltd,255600," 102,000.00 ",Information Management Services,Large,Programme Expenditure
UK Statistics Family,Office for National Statistics,02/02/2023,Exp - Purchase Of Goods/Services - Contractors,Testing,LA FOSSE ASSOCIATES LIMITED,255603," 15,960.00 ",Information Management Services,Large,Programme Expenditure
UK Statistics Family,Office for National Statistics,02/02/2023,Exp - Purchase Of Goods/Services - Contractors,Data Architecture,LA FOSSE ASSOCIATES LIMITED,255603," 2,880.00 ",Information Management Services,Large,Programme Expenditure
UK Statistics Family,Office for National Statistics,02/02/2023,Exp - Purchase Of Goods/Services - Contractors,Strategy And Architecture,LA FOSSE ASSOCIATES LIMITED,255603," 5,250.00 ",Information Management Services,Large,Programme Expenditure
UK Statistics Family,Office for National Statistics,02/02/2023,Exp - Purchase Of Goods/Services - Contractors,Digital Delivery,LA FOSSE ASSOCIATES LIMITED,255603," 13,680.00 ",Information Management Services,Large,Programme Expenditure
UK Statistics Family,Office for National Statistics,02/02/2023,Exp - Purchase Of Goods/Services - Contractors,Programme Support,Parity Resources Limited,255604," 2,880.00 ",Information Management Services,Large,Programme Expenditure
UK Statistics Family,Office for National Statistics,02/02/2023,Exp - Short-Term Contract & Agency Staff - Full Cost,Recruitment ,Parity Resources Limited,255604, 754.80 ,Information Management Services,Large,Programme Expenditure
UK Statistics Family,Office for National Statistics,02/02/2023,Exp - Purchase Of Goods/Services - Contractors,Data Architecture,Parity Resources Limited,255604," 8,658.90 ",Information Management Services,Large,Programme Expenditure
UK Statistics Family,Office for National Statistics,02/02/2023,Exp - Purchase Of Goods/Services - Contractors,CDIO UNGP,Parity Resources Limited,255604," 4,600.50 ",Information Management Services,Large,Programme Expenditure
UK Statistics Family,Office for National Statistics,02/02/2023,Exp - Purchase Of Goods/Services - Contractors,Tech Delivery Legacy Sp,Parity Resources Limited,255604," 2,699.22 ",Information Management Services,Large,Programme Expenditure
UK Statistics Family,Office for National Statistics,02/02/2023,Exp - Purchase Of Goods/Services - Contractors,Tech Delivery Next Gen IT And Infrastructure,Parity Resources Limited,255604," 7,578.90 ",Information Management Services,Large,Programme Expenditure
UK Statistics Family,Office for National Statistics,02/02/2023,Exp - Purchase Of Goods/Services - Contractors,IT Operations,Parity Resources Limited,255604," 3,550.50 ",Information Management Services,Large,Programme Expenditure
UK Statistics Family,Office for National Statistics,02/02/2023,Exp - Short-Term Contract & Agency Staff - Full Cost,Beyond 2021 Research And Design,Talent International,255605," 8,227.00 ",Information Management Services,SME,Programme Expenditure
UK Statistics Family,Office for National Statistics,02/02/2023,Exp - Purchase Of Goods/Services - Contractors,Consultancy Management,Talent International,255605," 11,400.00 ",Information Management Services,SME,Programme Expenditure
UK Statistics Family,Office for National Statistics,02/02/2023,Exp - Purchase Of Goods/Services - Contractors,Covid Infection Survey,Talent International,255605," 9,750.00 ",Information Management Services,SME,Programme Expenditure
UK Statistics Family,Office for National Statistics,02/02/2023,Exp - Short-Term Contract & Agency Staff - Full Cost,Strategy And Architecture,Talent International,255605," 1,149.34 ",Information Management Services,SME,Programme Expenditure
UK Statistics Family,Office for National Statistics,03/02/2023,Telecoms,IT Operations,Bt Global Services,255726," 51,984.00 ",Telecommunications,Large,Programme Expenditure
UK Statistics Family,Office for National Statistics,03/02/2023,Exp - Purchase Of Goods/Services - Incentive Payments,Covid Infection Survey,Sodexo Motivation Solutions U.K. ltd,255737," 135,138.06 ",Survey Response Incentive Vouchers,Large,Programme Expenditure
UK Statistics Family,Office for National Statistics,03/02/2023,Exp - Short-Term Contract & Agency Staff - Full Cost,Data Architecture,SmartSourcing Ltd,255739," 2,783.88 ",Information Management Services,SME,Programme Expenditure
UK Statistics Family,Office for National Statistics,03/02/2023,Exp - Purchase Of Goods/Services - Contractors,Data Architecture,SmartSourcing Ltd,255739," 17,085.41 ",Information Management Services,SME,Programme Expenditure
UK Statistics Family,Office for National Statistics,03/02/2023,Exp - Purchase Of Goods/Services - Contractors,IT Operations,SmartSourcing Ltd,255739," 3,746.16 ",Information Management Services,SME,Programme Expenditure
UK Statistics Family,Office for National Statistics,03/02/2023,Exp - Purchase Of Goods/Services - Contractors,IT Operations,SmartSourcing Ltd,255739," 13,246.94 ",Information Management Services,SME,Programme Expenditure
UK Statistics Family,Office for National Statistics,03/02/2023,Exp - Purchase Of Goods/Services - Contractors,Data As A Service,SmartSourcing Ltd,255739," 12,525.41 ",Information Management Services,SME,Programme Expenditure
UK Statistics Family,Office for National Statistics,03/02/2023,Exp - Purchase Of Goods And Services Consultants,Security Advisory,Bridewell Consulting Limited,255740," 207,000.00 ",Consultancy,SME,Programme Expenditure
UK Statistics Family,Office for National Statistics,03/02/2023,Exp - Short-Term Contract & Agency Staff - Full Cost,Data Management Audit And Compliance,Talent International,255745," 3,283.82 ",Information Management Services,SME,Programme Expenditure
UK Statistics Family,Office for National Statistics,03/02/2023,Exp - Purchase Of Goods/Services - Contractors,Data Architecture,Talent International,255745," 12,240.00 ",Information Management Services,SME,Programme Expenditure
UK Statistics Family,Office for National Statistics,03/02/2023,Exp - Purchase Of Goods/Services - Contractors,IT Operations,Talent International,255745," 10,200.00 ",Information Management Services,SME,Programme Expenditure
UK Statistics Family,Office for National Statistics,03/02/2023,Exp - Purchase Of Goods/Services - Contractors,DATA ENGINEERING OPERATIONS AND DELIVERY,Talent International,255745," 12,150.00 ",Information Management Services,SME,Programme Expenditure
UK Statistics Family,Office for National Statistics,06/02/2023,Exp - Purchase Of Goods/Services - Contractors,Programme Support,Certes Computing Ltd,255860," 16,380.00 ",Information Management Services,SME,Programme Expenditure
UK Statistics Family,Office for National Statistics,06/02/2023,Exp - Purchase Of Goods/Services - Contractors,Security Advisory,Certes Computing Ltd,255860," 20,538.76 ",Information Management Services,SME,Programme Expenditure
UK Statistics Family,Office for National Statistics,06/02/2023,Exp - Purchase Of Goods/Services - Contractors,CLOUD ARCHITECTURE,Certes Computing Ltd,255860," 8,802.32 ",Information Management Services,SME,Programme Expenditure
UK Statistics Family,Office for National Statistics,06/02/2023,Exp - Purchase Of Goods/Services - IT Contractual Services,PARTNERSHIP DEVELOPMENT,CTS (Cloud Technology Solutions Ltd),255861," 96,600.00 ",Information Management Services,Large,Programme Expenditure
UK Statistics Family,Office for National Statistics,06/02/2023,Hosting,CLOUD ARCHITECTURE,CTS (Cloud Technology Solutions Ltd),255861,"-229,614.26 ",Information Management Services,Large,Programme Expenditure
UK Statistics Family,Office for National Statistics,06/02/2023,Exp - Purchase Of Goods/Services - Contractors,CDIO UNGP,CTS (Cloud Technology Solutions Ltd),255861," 29,925.00 ",Information Management Services,Large,Programme Expenditure
UK Statistics Family,Office for National Statistics,06/02/2023,Exp - Purchase Of Goods/Services - IT Contractual Services,CDIO UNGP,CTS (Cloud Technology Solutions Ltd),255861," 137,700.00 ",Information Management Services,Large,Programme Expenditure
UK Statistics Family,Office for National Statistics,06/02/2023,Hosting,CLOUD ARCHITECTURE,Amazon Web Services Inc,255862," 242,749.96 ",Information Management Services,Large,Programme Expenditure
UK Statistics Family,Office for National Statistics,06/02/2023,Hosting,CDIO UNGP,Amazon Web Services Inc,255862, 1.42 ,Information Management Services,Large,Programme Expenditure
UK Statistics Family,Office for National Statistics,06/02/2023,Hosting,IT Operations,Crown Hosting Data Centres Limited,255869," 29,191.36 ",Information Management Services,SME,Programme Expenditure
UK Statistics Family,Office for National Statistics,06/02/2023,Other Goods And Services,Covid Infection Survey,London School of Hygiene & Tropical Medicine,255870," 36,288.00 ",Statistical Services,Large,Programme Expenditure
UK Statistics Family,Office for National Statistics,07/02/2023,Exp - Short-Term Contract & Agency Staff - Full Cost,GSS Strategy Delivery,Concept Information Technology Ltd T/A Concept Resourcing,256125," 3,363.00 ",Information Management Services,Large,Programme Expenditure
UK Statistics Family,Office for National Statistics,07/02/2023,Exp - Short-Term Contract & Agency Staff - Full Cost,GSS Strategy Delivery,Concept Information Technology Ltd T/A Concept Resourcing,256125," 3,961.50 ",Information Management Services,Large,Programme Expenditure
UK Statistics Family,Office for National Statistics,07/02/2023,Exp - Short-Term Contract & Agency Staff - Full Cost,Business Change Support,Concept Information Technology Ltd T/A Concept Resourcing,256125, 824.51 ,Information Management Services,Large,Programme Expenditure
UK Statistics Family,Office for National Statistics,07/02/2023,Exp - Short-Term Contract & Agency Staff - Full Cost,Business Change Support,Concept Information Technology Ltd T/A Concept Resourcing,256125," 8,160.22 ",Information Management Services,Large,Programme Expenditure
UK Statistics Family,Office for National Statistics,07/02/2023,Exp - Short-Term Contract & Agency Staff - Full Cost,Business Change Support,Concept Information Technology Ltd T/A Concept Resourcing,256125, 824.51 ,Information Management Services,Large,Programme Expenditure
UK Statistics Family,Office for National Statistics,07/02/2023,Exp - Short-Term Contract & Agency Staff - Full Cost,Productivity Research And Professional Development,Concept Information Technology Ltd T/A Concept Resourcing,256125," 4,652.35 ",Information Management Services,Large,Programme Expenditure
UK Statistics Family,Office for National Statistics,07/02/2023,Exp - Short-Term Contract & Agency Staff - Full Cost,STRATEGY SYNTHESIS AND CO-ORDINATION,Concept Information Technology Ltd T/A Concept Resourcing,256125," 2,395.54 ",Information Management Services,Large,Programme Expenditure
UK Statistics Family,Office for National Statistics,07/02/2023,Exp - Short-Term Contract & Agency Staff - Full Cost,"SUB-NATIONAL STATISTICS AND ANALYSIS
",Concept Information Technology Ltd T/A Concept Resourcing,256125," 4,007.10 ",Information Management Services,Large,Programme Expenditure
UK Statistics Family,Office for National Statistics,07/02/2023,Exp - Short-Term Contract & Agency Staff - Full Cost,Best Practice And Impact,Concept Information Technology Ltd T/A Concept Resourcing,256125," 19,574.30 ",Information Management Services,Large,Programme Expenditure
UK Statistics Family,Office for National Statistics,07/02/2023,Exp - Short-Term Contract & Agency Staff - Full Cost,Labour Market,Concept Information Technology Ltd T/A Concept Resourcing,256125," 1,895.26 ",Information Management Services,Large,Programme Expenditure
UK Statistics Family,Office for National Statistics,07/02/2023,End User Software And Hardware,IT Operations,Phoenix Software Ltd,256129," 29,875.14 ",Software Licenses,SME,Programme Expenditure
UK Statistics Family,Office for National Statistics,07/02/2023,Exp - Purchase Of Goods/Services - Contractors,Testing,Certes Computing Ltd,256135," 13,719.38 ",Information Management Services,SME,Programme Expenditure
UK Statistics Family,Office for National Statistics,07/02/2023,Exp - Purchase Of Goods/Services - Contractors,IT Applications,Certes Computing Ltd,256135," 31,421.17 ",Information Management Services,SME,Programme Expenditure
UK Statistics Family,Office for National Statistics,07/02/2023,Exp - Purchase Of Goods/Services - Contractors,Testing,La International,256136," 13,187.58 ",Information Management Services,SME,Programme Expenditure
UK Statistics Family,Office for National Statistics,07/02/2023,Exp - Purchase Of Goods/Services - Contractors,Data Architecture,La International,256136," 12,094.74 ",Information Management Services,SME,Programme Expenditure
UK Statistics Family,Office for National Statistics,07/02/2023,Exp - Purchase Of Goods/Services - Contractors,Tech Delivery Next Gen IT And Infrastructure,La International,256136," 3,844.62 ",Information Management Services,SME,Programme Expenditure
UK Statistics Family,Office for National Statistics,07/02/2023,Exp - Purchase Of Goods/Services - Contractors,IT Applications,La International,256136," 9,162.36 ",Information Management Services,SME,Programme Expenditure
UK Statistics Family,Office for National Statistics,07/02/2023,Exp - Purchase Of Goods/Services - Contractors,IT Operations,La International,256136," 23,411.04 ",Information Management Services,SME,Programme Expenditure
UK Statistics Family,Office for National Statistics,07/02/2023,Exp - Purchase Of Goods/Services - Contractors,Data Science Campus,La International,256136," 9,579.55 ",Information Management Services,SME,Programme Expenditure
UK Statistics Family,Office for National Statistics,07/02/2023,Hosting,CLOUD ARCHITECTURE,CTS (Cloud Technology Solutions Ltd),256144, 88.42 ,Information Management Services,Large,Programme Expenditure
UK Statistics Family,Office for National Statistics,07/02/2023,Hosting,CLOUD ARCHITECTURE,CTS (Cloud Technology Solutions Ltd),256144," 209,629.19 ",Information Management Services,Large,Programme Expenditure
UK Statistics Family,Office for National Statistics,07/02/2023,Exp - Purchase Of Goods/Services - IT Contractual Services,IT Applications,Diegesis Limited,256148," 239,406.00 ",Information Management Services,Large,Programme Expenditure
UK Statistics Family,Office for National Statistics,07/02/2023,Exp - Purchase Of Goods/Services - Incentive Payments,Survey Management,Sodexo Motivation Solutions U.K. ltd,256149," 2,079.85 ",Survey Response Incentive Vouchers,Large,Programme Expenditure
UK Statistics Family,Office for National Statistics,07/02/2023,Exp - Purchase Of Goods/Services - Incentive Payments,Survey Management,Sodexo Motivation Solutions U.K. ltd,256149," 1,848.05 ",Survey Response Incentive Vouchers,Large,Programme Expenditure
UK Statistics Family,Office for National Statistics,07/02/2023,Exp - Purchase Of Goods/Services - Incentive Payments,Survey Management,Sodexo Motivation Solutions U.K. ltd,256149," 2,178.27 ",Survey Response Incentive Vouchers,Large,Programme Expenditure
UK Statistics Family,Office for National Statistics,07/02/2023,Exp - Purchase Of Goods/Services - Incentive Payments,Survey Management,Sodexo Motivation Solutions U.K. ltd,256149," 31,783.33 ",Survey Response Incentive Vouchers,Large,Programme Expenditure
UK Statistics Family,Office for National Statistics,07/02/2023,Exp - Purchase Of Goods/Services - Incentive Payments,Survey Management,Sodexo Motivation Solutions U.K. ltd,256149," 3,476.35 ",Survey Response Incentive Vouchers,Large,Programme Expenditure
UK Statistics Family,Office for National Statistics,07/02/2023,Exp - Purchase Of Goods/Services - Incentive Payments,Survey Management,Sodexo Motivation Solutions U.K. ltd,256149," 17,655.65 ",Survey Response Incentive Vouchers,Large,Programme Expenditure
UK Statistics Family,Office for National Statistics,07/02/2023,Exp - Purchase Of Goods/Services - Incentive Payments,Interviewer Support,Sodexo Motivation Solutions U.K. ltd,256149, 138.15 ,Survey Response Incentive Vouchers,Large,Programme Expenditure
UK Statistics Family,Office for National Statistics,07/02/2023,Exp - Purchase Of Goods/Services - Incentive Payments,Survey Management,Sodexo Motivation Solutions U.K. ltd,256149," 6,394.66 ",Survey Response Incentive Vouchers,Large,Programme Expenditure
UK Statistics Family,Office for National Statistics,07/02/2023,Exp - Purchase Of Goods/Services - Incentive Payments,Social Surveys Division,Sodexo Motivation Solutions U.K. ltd,256149, 394.74 ,Survey Response Incentive Vouchers,Large,Programme Expenditure
UK Statistics Family,Office for National Statistics,07/02/2023,Exp - Short-Term Contract & Agency Staff - Full Cost,Finance,Parity Resources Limited,256152," 2,264.40 ",Information Management Services,Large,Programme Expenditure
UK Statistics Family,Office for National Statistics,07/02/2023,Exp - Purchase Of Goods/Services - Contractors,BUSINESS STRATEGY PERFORMANCE AND PMO,Parity Resources Limited,256152," 13,260.00 ",Information Management Services,Large,Programme Expenditure
UK Statistics Family,Office for National Statistics,07/02/2023,Exp - Purchase Of Goods/Services - Contractors,Strategy And Architecture,Parity Resources Limited,256152," 10,947.30 ",Information Management Services,Large,Programme Expenditure
UK Statistics Family,Office for National Statistics,07/02/2023,Exp - Short-Term Contract & Agency Staff - Full Cost,Interviewer Management FiF,Parity Resources Limited,256152," 3,468.40 ",Information Management Services,Large,Programme Expenditure
UK Statistics Family,Office for National Statistics,07/02/2023,Exp - Purchase Of Goods/Services - Census Field Costs,Interviewer Management FiF,Parity Resources Limited,256152, 168.00 ,Information Management Services,Large,Programme Expenditure
UK Statistics Family,Office for National Statistics,07/02/2023,End User Software And Hardware,IT Operations,Boxxe Ltd,256153," 35,865.96 ",Software Licenses,SME,Programme Expenditure
UK Statistics Family,Office for National Statistics,07/02/2023,Exp - Purchase Of Goods/Services - Contractors,Covid Infection Survey,Talent International,256154," 28,080.00 ",Information Management Services,SME,Programme Expenditure
UK Statistics Family,Office for National Statistics,07/02/2023,Exp - Short-Term Contract & Agency Staff - Full Cost,Finance,Talent International,256154," 3,543.11 ",Information Management Services,SME,Programme Expenditure
UK Statistics Family,Office for National Statistics,07/02/2023,Exp - Short-Term Contract & Agency Staff - Full Cost,Planning And Info Governance,Talent International,256154," 3,119.63 ",Information Management Services,SME,Programme Expenditure
UK Statistics Family,Office for National Statistics,07/02/2023,Exp - Short-Term Contract & Agency Staff - Full Cost,Planning And Info Governance,Talent International,256154," 5,114.53 ",Information Management Services,SME,Programme Expenditure
UK Statistics Family,Office for National Statistics,07/02/2023,Exp - Short-Term Contract & Agency Staff - Full Cost,Recruitment ,Talent International,256154," 8,603.83 ",Information Management Services,SME,Programme Expenditure
UK Statistics Family,Office for National Statistics,07/02/2023,Exp - Purchase Of Goods/Services - Contractors,Data Architecture,Talent International,256154," 13,440.00 ",Information Management Services,SME,Programme Expenditure
UK Statistics Family,Office for National Statistics,07/02/2023,Exp - Purchase Of Goods/Services - Contractors,Tech Delivery Legacy Sp,Talent International,256154," 18,217.20 ",Information Management Services,SME,Programme Expenditure
UK Statistics Family,Office for National Statistics,07/02/2023,Exp - Purchase Of Goods/Services - Contractors,IT Operations,Talent International,256154," 15,960.00 ",Information Management Services,SME,Programme Expenditure
UK Statistics Family,Office for National Statistics,07/02/2023,Other Goods And Services,Crime Statistics,Crest Advisory (UK) Ltd,256157," 26,310.00 ",Consultancy,SME,Programme Expenditure
UK Statistics Family,Office for National Statistics,08/02/2023,Other Goods And Services,Property London,Vinci Construction UK Limited,256316," 185,160.01 ",Facilities Mangement Services,Large,Programme Expenditure
UK Statistics Family,Office for National Statistics,08/02/2023,Exp - Short-Term Contract & Agency Staff - Full Cost,GSS Strategy Delivery,Concept Information Technology Ltd T/A Concept Resourcing,256317," 4,652.34 ",Information Management Services,Large,Programme Expenditure
UK Statistics Family,Office for National Statistics,08/02/2023,Exp - Short-Term Contract & Agency Staff - Full Cost,Beyond 2021 Research And Design,Concept Information Technology Ltd T/A Concept Resourcing,256317," 3,133.13 ",Information Management Services,Large,Programme Expenditure
UK Statistics Family,Office for National Statistics,08/02/2023,Exp - Short-Term Contract & Agency Staff - Full Cost,Business Change Support,Concept Information Technology Ltd T/A Concept Resourcing,256317," 4,007.10 ",Information Management Services,Large,Programme Expenditure
UK Statistics Family,Office for National Statistics,08/02/2023,Exp - Short-Term Contract & Agency Staff - Full Cost,Business Change Support,Concept Information Technology Ltd T/A Concept Resourcing,256317," 3,133.13 ",Information Management Services,Large,Programme Expenditure
UK Statistics Family,Office for National Statistics,08/02/2023,Exp - Short-Term Contract & Agency Staff - Full Cost,International Trade And Transactions,Concept Information Technology Ltd T/A Concept Resourcing,256317," 4,104.32 ",Information Management Services,Large,Programme Expenditure
UK Statistics Family,Office for National Statistics,08/02/2023,Exp - Short-Term Contract & Agency Staff - Full Cost,International Trade And Transactions,Concept Information Technology Ltd T/A Concept Resourcing,256317," 3,133.13 ",Information Management Services,Large,Programme Expenditure
UK Statistics Family,Office for National Statistics,08/02/2023,Exp - Short-Term Contract & Agency Staff - Full Cost,International Trade And Transactions,Concept Information Technology Ltd T/A Concept Resourcing,256317," 2,750.26 ",Information Management Services,Large,Programme Expenditure
UK Statistics Family,Office for National Statistics,08/02/2023,Exp - Short-Term Contract & Agency Staff - Full Cost,"SUB-NATIONAL STATISTICS AND ANALYSIS
",Concept Information Technology Ltd T/A Concept Resourcing,256317," 4,004.26 ",Information Management Services,Large,Programme Expenditure
UK Statistics Family,Office for National Statistics,08/02/2023,Exp - Short-Term Contract & Agency Staff - Full Cost,Commercial Services,Concept Information Technology Ltd T/A Concept Resourcing,256317, 42.12 ,Information Management Services,Large,Programme Expenditure
UK Statistics Family,Office for National Statistics,08/02/2023,Exp - Short-Term Contract & Agency Staff - Full Cost,Best Practice And Impact,Concept Information Technology Ltd T/A Concept Resourcing,256317," 4,009.00 ",Information Management Services,Large,Programme Expenditure
UK Statistics Family,Office for National Statistics,08/02/2023,Exp - Short-Term Contract & Agency Staff - Full Cost,Business Outputs And Developments,Concept Information Technology Ltd T/A Concept Resourcing,256317," 1,054.50 ",Information Management Services,Large,Programme Expenditure
UK Statistics Family,Office for National Statistics,08/02/2023,Exp - Purchase Of Goods/Services - IT Contractual Services,IT Operations,Ibm United Kingdom Ltd,256320," 85,018.80 ",Information Management Services,Large,Programme Expenditure
UK Statistics Family,Office for National Statistics,08/02/2023,Exp - Purchase Of Goods/Services - Contractors,Data Architecture,Certes Computing Ltd,256323," 15,207.70 ",Information Management Services,SME,Programme Expenditure
UK Statistics Family,Office for National Statistics,08/02/2023,Exp - Purchase Of Goods/Services - Contractors,Strategy And Architecture,Certes Computing Ltd,256323," 18,900.00 ",Information Management Services,SME,Programme Expenditure
UK Statistics Family,Office for National Statistics,08/02/2023,Exp - Purchase Of Goods/Services - Contractors,DATA ENGINEERING OPERATIONS AND DELIVERY,Certes Computing Ltd,256323," 35,714.28 ",Information Management Services,SME,Programme Expenditure
UK Statistics Family,Office for National Statistics,08/02/2023,Exp - Short-Term Contract & Agency Staff - Full Cost,Programme Other,Malikshaw Interim & Executive,256326, 54.61 ,Information Management Services,SME,Programme Expenditure
UK Statistics Family,Office for National Statistics,08/02/2023,Exp - Short-Term Contract & Agency Staff - Full Cost,Data Architecture,Malikshaw Interim & Executive,256326, 344.52 ,Information Management Services,SME,Programme Expenditure
UK Statistics Family,Office for National Statistics,08/02/2023,Exp - Purchase Of Goods/Services - Contractors,Data Architecture,Malikshaw Interim & Executive,256326," 18,345.60 ",Information Management Services,SME,Programme Expenditure
UK Statistics Family,Office for National Statistics,08/02/2023,Exp - Purchase Of Goods/Services - Contractors,Data Science Campus,Malikshaw Interim & Executive,256326," 5,241.60 ",Information Management Services,SME,Programme Expenditure
UK Statistics Family,Office for National Statistics,08/02/2023,Exp - Purchase Of Goods/Services - Contractors,DATA ENGINEERING OPERATIONS AND DELIVERY,Malikshaw Interim & Executive,256326," 15,813.00 ",Information Management Services,SME,Programme Expenditure
UK Statistics Family,Office for National Statistics,08/02/2023,Exp - Purchase Of Goods/Services - Contractors,DATA ENGINEERING OPERATIONS AND DELIVERY,Malikshaw Interim & Executive,256326," 19,605.60 ",Information Management Services,SME,Programme Expenditure
UK Statistics Family,Office for National Statistics,08/02/2023,Exp - Purchase Of Goods/Services - Contractors,Consultancy Management,LA FOSSE ASSOCIATES LIMITED,256327," 14,040.00 ",Information Management Services,Large,Programme Expenditure
UK Statistics Family,Office for National Statistics,08/02/2023,Exp - Purchase Of Goods/Services - Contractors,Data Architecture,LA FOSSE ASSOCIATES LIMITED,256327," 19,440.00 ",Information Management Services,Large,Programme Expenditure
UK Statistics Family,Office for National Statistics,08/02/2023,Exp - Purchase Of Goods/Services - Contractors,Data Architecture,SmartSourcing Ltd,256328," 34,395.17 ",Information Management Services,SME,Programme Expenditure
UK Statistics Family,Office for National Statistics,08/02/2023,Exp - Purchase Of Goods/Services - Contractors,Security Advisory,Parity Resources Limited,256331," 15,999.90 ",Information Management Services,Large,Programme Expenditure
UK Statistics Family,Office for National Statistics,08/02/2023,Exp - Purchase Of Goods/Services - Contractors,Data Architecture,Parity Resources Limited,256331," 9,621.00 ",Information Management Services,Large,Programme Expenditure
UK Statistics Family,Office for National Statistics,08/02/2023,Exp - Purchase Of Goods/Services - Contractors,Tech Delivery Next Gen IT And Infrastructure,Parity Resources Limited,256331," 4,210.50 ",Information Management Services,Large,Programme Expenditure
UK Statistics Family,Office for National Statistics,08/02/2023,Exp - Purchase Of Goods/Services - Contractors,IT Operations,Parity Resources Limited,256331," 3,550.50 ",Information Management Services,Large,Programme Expenditure
UK Statistics Family,Office for National Statistics,08/02/2023,Exp - Short-Term Contract & Agency Staff - Full Cost,Interviewer Management FiF,Parity Resources Limited,256331," 3,473.12 ",Information Management Services,Large,Programme Expenditure
UK Statistics Family,Office for National Statistics,08/02/2023,Exp - Purchase Of Goods/Services - Census Field Costs,Interviewer Management FiF,Parity Resources Limited,256331, 717.86 ,Information Management Services,Large,Programme Expenditure
UK Statistics Family,Office for National Statistics,08/02/2023,IT (Owned) At Cost - Additions,IT Operations,Insight Direct,256334," 202,033.92 ",Computers and Peripherals,Large,Programme Expenditure
UK Statistics Family,Office for National Statistics,08/02/2023,Exp - Short-Term Contract & Agency Staff - Full Cost,Recruitment ,Talent International,256336," 2,911.68 ",Information Management Services,SME,Programme Expenditure
UK Statistics Family,Office for National Statistics,08/02/2023,Exp - Purchase Of Goods/Services - Contractors,INTEGRATED DATA STRATEGY AND DELIVERY,Talent International,256336," 13,800.00 ",Information Management Services,SME,Programme Expenditure
UK Statistics Family,Office for National Statistics,08/02/2023,Exp - Purchase Of Goods/Services - Contractors,Data Architecture,Talent International,256336," 18,239.77 ",Information Management Services,SME,Programme Expenditure
UK Statistics Family,Office for National Statistics,08/02/2023,Exp - Purchase Of Goods/Services - Contractors,Tech Delivery Legacy Sp,Talent International,256336," 7,800.00 ",Information Management Services,SME,Programme Expenditure
UK Statistics Family,Office for National Statistics,08/02/2023,Exp - Purchase Of Goods/Services - Contractors,Data Science Campus,Talent International,256336," 12,150.00 ",Information Management Services,SME,Programme Expenditure
UK Statistics Family,Office for National Statistics,09/02/2023,Exp - Purchase Of Goods And Services Consultants,Policy Secretariat,Parity Resources Limited,256458, 925.14 ,Information Management Services,Large,Programme Expenditure
UK Statistics Family,Office for National Statistics,09/02/2023,Exp - Purchase Of Goods/Services - Contractors,Programme Support,Parity Resources Limited,256458," 3,600.00 ",Information Management Services,Large,Programme Expenditure
UK Statistics Family,Office for National Statistics,09/02/2023,Exp - Short-Term Contract & Agency Staff - Full Cost,Recruitment ,Parity Resources Limited,256458," 3,712.80 ",Information Management Services,Large,Programme Expenditure
UK Statistics Family,Office for National Statistics,09/02/2023,Exp - Purchase Of Goods/Services - Contractors,Security Advisory,Parity Resources Limited,256458," 16,237.80 ",Information Management Services,Large,Programme Expenditure
UK Statistics Family,Office for National Statistics,09/02/2023,Exp - Purchase Of Goods/Services - Contractors,BUSINESS STRATEGY PERFORMANCE AND PMO,Parity Resources Limited,256458," 5,100.00 ",Information Management Services,Large,Programme Expenditure
UK Statistics Family,Office for National Statistics,09/02/2023,Exp - Purchase Of Goods/Services - Contractors,Strategy And Architecture,Parity Resources Limited,256458," 13,894.66 ",Information Management Services,Large,Programme Expenditure
UK Statistics Family,Office for National Statistics,09/02/2023,Exp - Purchase Of Goods/Services - Contractors,Strategy And Architecture,Parity Resources Limited,256458," 4,210.50 ",Information Management Services,Large,Programme Expenditure
UK Statistics Family,Office for National Statistics,09/02/2023,Exp - Purchase Of Goods/Services - Contractors,Tech Delivery Legacy Sp,Parity Resources Limited,256458," 2,699.22 ",Information Management Services,Large,Programme Expenditure
UK Statistics Family,Office for National Statistics,09/02/2023,Exp - Purchase Of Goods/Services - Contractors,Tech Delivery Next Gen IT And Infrastructure,Parity Resources Limited,256458," 12,211.50 ",Information Management Services,Large,Programme Expenditure
UK Statistics Family,Office for National Statistics,09/02/2023,Exp - Purchase Of Goods/Services - Contractors,IT Applications,Parity Resources Limited,256458," 28,259.46 ",Information Management Services,Large,Programme Expenditure
UK Statistics Family,Office for National Statistics,09/02/2023,Exp - Purchase Of Goods/Services - Contractors,DATA ENGINEERING OPERATIONS AND DELIVERY,Parity Resources Limited,256458," 14,859.90 ",Information Management Services,Large,Programme Expenditure
UK Statistics Family,Office for National Statistics,09/02/2023,Exp - Short-Term Contract & Agency Staff - Full Cost,GSS Strategy Delivery,Concept Information Technology Ltd T/A Concept Resourcing,256464," 4,037.50 ",Information Management Services,Large,Programme Expenditure
UK Statistics Family,Office for National Statistics,09/02/2023,Exp - Short-Term Contract & Agency Staff - Full Cost,GSS Strategy Delivery,Concept Information Technology Ltd T/A Concept Resourcing,256464," 4,400.48 ",Information Management Services,Large,Programme Expenditure
UK Statistics Family,Office for National Statistics,09/02/2023,Exp - Short-Term Contract & Agency Staff - Full Cost,Business Change Support,Concept Information Technology Ltd T/A Concept Resourcing,256464," 2,741.70 ",Information Management Services,Large,Programme Expenditure
UK Statistics Family,Office for National Statistics,09/02/2023,Exp - Short-Term Contract & Agency Staff - Full Cost,Business Change Support,Concept Information Technology Ltd T/A Concept Resourcing,256464," 4,007.10 ",Information Management Services,Large,Programme Expenditure
UK Statistics Family,Office for National Statistics,09/02/2023,Exp - Short-Term Contract & Agency Staff - Full Cost,Business Change Support,Concept Information Technology Ltd T/A Concept Resourcing,256464," 1,495.70 ",Information Management Services,Large,Programme Expenditure
UK Statistics Family,Office for National Statistics,09/02/2023,Exp - Short-Term Contract & Agency Staff - Full Cost,Business Change Support,Concept Information Technology Ltd T/A Concept Resourcing,256464," 6,510.39 ",Information Management Services,Large,Programme Expenditure
UK Statistics Family,Office for National Statistics,09/02/2023,Exp - Short-Term Contract & Agency Staff - Full Cost,Business Change Support,Concept Information Technology Ltd T/A Concept Resourcing,256464," 11,388.60 ",Information Management Services,Large,Programme Expenditure
UK Statistics Family,Office for National Statistics,09/02/2023,Exp - Short-Term Contract & Agency Staff - Full Cost,Business Change Support,Concept Information Technology Ltd T/A Concept Resourcing,256464," 2,952.60 ",Information Management Services,Large,Programme Expenditure
UK Statistics Family,Office for National Statistics,09/02/2023,Exp - Short-Term Contract & Agency Staff - Full Cost,Business Architecture Transformation And Statistical Strategy,Concept Information Technology Ltd T/A Concept Resourcing,256464," 3,454.48 ",Information Management Services,Large,Programme Expenditure
UK Statistics Family,Office for National Statistics,09/02/2023,Exp - Short-Term Contract & Agency Staff - Full Cost,Business Architecture Transformation And Statistical Strategy,Concept Information Technology Ltd T/A Concept Resourcing,256464, 275.52 ,Information Management Services,Large,Programme Expenditure
UK Statistics Family,Office for National Statistics,09/02/2023,Exp - Short-Term Contract & Agency Staff - Full Cost,ECONOMICS STATISTICS CHANGE CENTRAL,Concept Information Technology Ltd T/A Concept Resourcing,256464," 3,147.62 ",Information Management Services,Large,Programme Expenditure
UK Statistics Family,Office for National Statistics,09/02/2023,Exp - Purchase Of Goods/Services - Contractors,CDIO UNGP,Concept Information Technology Ltd T/A Concept Resourcing,256464," 11,977.25 ",Information Management Services,Large,Programme Expenditure
UK Statistics Family,Office for National Statistics,09/02/2023,Exp - Short-Term Contract & Agency Staff - Full Cost,Public Sector And Households,Concept Information Technology Ltd T/A Concept Resourcing,256464," 3,585.30 ",Information Management Services,Large,Programme Expenditure
UK Statistics Family,Office for National Statistics,09/02/2023,Exp - Short-Term Contract & Agency Staff - Full Cost,Social Surveys Division,Concept Information Technology Ltd T/A Concept Resourcing,256464," 3,780.05 ",Information Management Services,Large,Programme Expenditure
UK Statistics Family,Office for National Statistics,09/02/2023,Exp - Purchase Of Goods/Services - IT Contractual Services,Digital Publishing,University of Durham,256465," 72,956.80 ",Statistical Services,Large,Programme Expenditure
UK Statistics Family,Office for National Statistics,09/02/2023,Gas,Property Titchfield,TotalEnergies Gas & Power Ltd,256467," 49,572.35 ",Utility Charges,Large,Programme Expenditure
UK Statistics Family,Office for National Statistics,09/02/2023,Exp - Purchase Of Goods/Services - Contractors,Consultancy Management,Malikshaw Interim & Executive,256471," 15,573.60 ",Information Management Services,SME,Programme Expenditure
UK Statistics Family,Office for National Statistics,09/02/2023,Exp - Short-Term Contract & Agency Staff - Full Cost,Business Architecture Transformation And Statistical Strategy,Malikshaw Interim & Executive,256471, 272.80 ,Information Management Services,SME,Programme Expenditure
UK Statistics Family,Office for National Statistics,09/02/2023,Exp - Purchase Of Goods/Services - Contractors,Business Architecture Transformation And Statistical Strategy,Malikshaw Interim & Executive,256471," 16,380.00 ",Information Management Services,SME,Programme Expenditure
UK Statistics Family,Office for National Statistics,09/02/2023,Exp - Short-Term Contract & Agency Staff - Full Cost,Migration Statistics,Malikshaw Interim & Executive,256471, 313.56 ,Information Management Services,SME,Programme Expenditure
UK Statistics Family,Office for National Statistics,09/02/2023,Exp - Purchase Of Goods/Services - Contractors,CDIO UNGP,Malikshaw Interim & Executive,256471," 16,380.00 ",Information Management Services,SME,Programme Expenditure
UK Statistics Family,Office for National Statistics,09/02/2023,Exp - Short-Term Contract & Agency Staff - Full Cost,Strategy And Architecture,Malikshaw Interim & Executive,256471," 2,564.10 ",Information Management Services,SME,Programme Expenditure
UK Statistics Family,Office for National Statistics,10/02/2023,Telecoms,Covid Infection Survey,Vodafone Corporate Ltd,256571," 30,576.00 ",Telecommunications,Large,Programme Expenditure
UK Statistics Family,Office for National Statistics,10/02/2023,Exp - Purchase Of Goods/Services - Incentive Payments,Covid Infection Survey,Sodexo Motivation Solutions U.K. ltd,256578," 96,054.60 ",Survey Response Incentive Vouchers,Large,Programme Expenditure
UK Statistics Family,Office for National Statistics,13/02/2023,Exp - Purchase Of Goods/Services - Contractors,Testing,La International,256681," 10,857.86 ",Information Management Services,SME,Programme Expenditure
UK Statistics Family,Office for National Statistics,13/02/2023,Exp - Purchase Of Goods/Services - Contractors,Testing,La International,256681," 1,327.06 ",Information Management Services,SME,Programme Expenditure
UK Statistics Family,Office for National Statistics,13/02/2023,Exp - Purchase Of Goods/Services - Contractors,Security And Information Management Saim,La International,256681," 21,660.00 ",Information Management Services,SME,Programme Expenditure
UK Statistics Family,Office for National Statistics,13/02/2023,Exp - Purchase Of Goods/Services - Contractors,Data Architecture,La International,256681," 12,094.74 ",Information Management Services,SME,Programme Expenditure
UK Statistics Family,Office for National Statistics,13/02/2023,Exp - Purchase Of Goods/Services - Contractors,CLOUD ARCHITECTURE,La International,256681," 15,827.08 ",Information Management Services,SME,Programme Expenditure
UK Statistics Family,Office for National Statistics,13/02/2023,Exp - Purchase Of Goods/Services - Contractors,Tech Delivery Next Gen IT And Infrastructure,La International,256681," 3,844.62 ",Information Management Services,SME,Programme Expenditure
UK Statistics Family,Office for National Statistics,13/02/2023,Exp - Purchase Of Goods/Services - Contractors,IT Applications,La International,256681," 4,581.18 ",Information Management Services,SME,Programme Expenditure
UK Statistics Family,Office for National Statistics,13/02/2023,Other Goods And Services,ONS Corporate Funds,Edenred (UK Group) Limited,256690," 47,150.00 ",Performance Reward Vouchers,Large,Programme Expenditure
UK Statistics Family,Office for National Statistics,14/02/2023,FM Contract Payments,Vinci Payments,Vinci Construction UK Limited,256893," 42,635.29 ",Facilities Mangement Services,Large,Programme Expenditure
UK Statistics Family,Office for National Statistics,14/02/2023,Exp - Purchase Of Goods/Services - IT Contractual Services,IT Operations,Ibm United Kingdom Ltd,256898," 78,824.28 ",Information Management Services,Large,Programme Expenditure
UK Statistics Family,Office for National Statistics,14/02/2023,Exp - Purchase Of Goods/Services - Training & Development - Professional Membership Fees,MSA Central,HM Treasury Group,256900," 207,826.68 ",Professional Membership Fees,Large,Programme Expenditure
UK Statistics Family,Office for National Statistics,14/02/2023,Exp - Purchase Of Goods/Services - Incentive Payments,Survey Management,Sodexo Motivation Solutions U.K. ltd,256907," 1,550.60 ",Survey Response Incentive Vouchers,Large,Programme Expenditure
UK Statistics Family,Office for National Statistics,14/02/2023,Exp - Purchase Of Goods/Services - Incentive Payments,Survey Management,Sodexo Motivation Solutions U.K. ltd,256907, 762.60 ,Survey Response Incentive Vouchers,Large,Programme Expenditure
UK Statistics Family,Office for National Statistics,14/02/2023,Exp - Purchase Of Goods/Services - Incentive Payments,Survey Management,Sodexo Motivation Solutions U.K. ltd,256907," 1,476.48 ",Survey Response Incentive Vouchers,Large,Programme Expenditure
UK Statistics Family,Office for National Statistics,14/02/2023,Exp - Purchase Of Goods/Services - Incentive Payments,Survey Management,Sodexo Motivation Solutions U.K. ltd,256907," 33,135.31 ",Survey Response Incentive Vouchers,Large,Programme Expenditure
UK Statistics Family,Office for National Statistics,14/02/2023,Exp - Purchase Of Goods/Services - Incentive Payments,Survey Management,Sodexo Motivation Solutions U.K. ltd,256907," 9,809.81 ",Survey Response Incentive Vouchers,Large,Programme Expenditure
UK Statistics Family,Office for National Statistics,14/02/2023,Exp - Purchase Of Goods/Services - Incentive Payments,Survey Management,Sodexo Motivation Solutions U.K. ltd,256907, 677.10 ,Survey Response Incentive Vouchers,Large,Programme Expenditure
UK Statistics Family,Office for National Statistics,14/02/2023,Exp - Purchase Of Goods/Services - Incentive Payments,Crime Statistics,Sodexo Motivation Solutions U.K. ltd,256907, 49.34 ,Survey Response Incentive Vouchers,Large,Programme Expenditure
UK Statistics Family,Office for National Statistics,14/02/2023,Exp - Purchase Of Goods/Services - Incentive Payments,Interviewer Support,Sodexo Motivation Solutions U.K. ltd,256907, 167.75 ,Survey Response Incentive Vouchers,Large,Programme Expenditure
UK Statistics Family,Office for National Statistics,14/02/2023,Exp - Purchase Of Goods/Services - Incentive Payments,Survey Management,Sodexo Motivation Solutions U.K. ltd,256907," 13,392.25 ",Survey Response Incentive Vouchers,Large,Programme Expenditure
UK Statistics Family,Office for National Statistics,14/02/2023,Exp - Purchase Of Goods/Services - Incentive Payments,Survey Management,Sodexo Motivation Solutions U.K. ltd,256907," 4,933.14 ",Survey Response Incentive Vouchers,Large,Programme Expenditure
UK Statistics Family,Office for National Statistics,14/02/2023,Exp - Purchase Of Goods/Services - Incentive Payments,Social Surveys Division,Sodexo Motivation Solutions U.K. ltd,256907, 296.06 ,Survey Response Incentive Vouchers,Large,Programme Expenditure
UK Statistics Family,Office for National Statistics,14/02/2023,"ICT Outsourcing, Maintenance And Support",IT Operations,Cdw Limited,256909," 105,978.96 ",Information Management Services,Large,Programme Expenditure
UK Statistics Family,Office for National Statistics,14/02/2023,Exp - Purchase Of Goods/Services - IT Contractual Services,Digital Delivery,Armakuni Ltd,256910," 50,160.00 ",Information Management Services,SME,Programme Expenditure
UK Statistics Family,Office for National Statistics,14/02/2023,Exp - Purchase Of Goods And Services Consultants,INTEGRATED DATA STRATEGY AND DELIVERY,Deloitte,256918," 1,672,194.00 ",Consultancy,Large,Programme Expenditure
UK Statistics Family,Office for National Statistics,15/02/2023,Buildings Under Construction,Property Newport,Vinci Construction UK Limited,257094," 112,175.33 ",Facilities Mangement Services,Large,Programme Expenditure
UK Statistics Family,Office for National Statistics,15/02/2023,Buildings Under Construction,Property Titchfield,Vinci Construction UK Limited,257094," 36,000.00 ",Facilities Mangement Services,Large,Programme Expenditure
UK Statistics Family,Office for National Statistics,15/02/2023,Capital Major Works >25K,Property Titchfield,Vinci Construction UK Limited,257094," 79,200.00 ",Facilities Mangement Services,Large,Programme Expenditure
UK Statistics Family,Office for National Statistics,15/02/2023,Buildings Under Construction,Property Christchurch,Vinci Construction UK Limited,257094," 150,000.00 ",Facilities Mangement Services,Large,Programme Expenditure
UK Statistics Family,Office for National Statistics,15/02/2023,Exp - Purchase Of Goods/Services - Contractors,Digital Media,Certes Computing Ltd,257098," 11,689.13 ",Information Management Services,SME,Programme Expenditure
UK Statistics Family,Office for National Statistics,15/02/2023,Exp - Purchase Of Goods/Services - Contractors,Data Architecture,Certes Computing Ltd,257098," 18,522.76 ",Information Management Services,SME,Programme Expenditure
UK Statistics Family,Office for National Statistics,15/02/2023,Capitalised Consultancy Non IT,Corporate Planning And Resilience,Ernst & Young LLP,257099," 24,018.30 ",Consultancy,Large,Programme Expenditure
UK Statistics Family,Office for National Statistics,15/02/2023,Training & Development,Learning And Capability,Ernst & Young LLP,257099," 1,741.50 ",Training and Educational Services,Large,Programme Expenditure
UK Statistics Family,Office for National Statistics,15/02/2023,Exp - Purchase Of Goods/Services - IT Contractual Services,PARTNERSHIP DEVELOPMENT,CTS (Cloud Technology Solutions Ltd),257102," 102,577.92 ",Information Management Services,Large,Programme Expenditure
UK Statistics Family,Office for National Statistics,15/02/2023,Capital Major Works >25K,Property Newport,Purascope Limited,257107," 40,754.40 ",Workplace Improvement Costs,Large,Programme Expenditure
UK Statistics Family,Office for National Statistics,16/02/2023,Exp - Purchase Of Goods/Services - IT Contractual Services,PARTNERSHIP DEVELOPMENT,CTS (Cloud Technology Solutions Ltd),257218," 37,056.00 ",Information Management Services,Large,Programme Expenditure
UK Statistics Family,Office for National Statistics,16/02/2023,Exp - Purchase Of Goods/Services - Contractors,INTEGRATED DATA STRATEGY AND DELIVERY,LA FOSSE ASSOCIATES LIMITED,257220," 26,340.00 ",Information Management Services,Large,Programme Expenditure
UK Statistics Family,Office for National Statistics,17/02/2023,Capital Major Works >25K,Property Newport,Vinci Construction UK Limited,257317," 41,760.00 ",Facilities Mangement Services,Large,Programme Expenditure
UK Statistics Family,Office for National Statistics,17/02/2023,Capital Major Works >25K,Property Titchfield,Vinci Construction UK Limited,257317," 7,200.00 ",Facilities Mangement Services,Large,Programme Expenditure
UK Statistics Family,Office for National Statistics,17/02/2023,Exp - Purchase Of Goods/Services - Contractors,Data Architecture,Malikshaw Interim & Executive,257329," 13,831.20 ",Information Management Services,SME,Programme Expenditure
UK Statistics Family,Office for National Statistics,17/02/2023,Exp - Purchase Of Goods/Services - Contractors,Data Architecture,Malikshaw Interim & Executive,257329," 20,865.60 ",Information Management Services,SME,Programme Expenditure
UK Statistics Family,Office for National Statistics,17/02/2023,Exp - Purchase Of Goods/Services - Contractors,Data Science Campus,Malikshaw Interim & Executive,257329," 14,414.40 ",Information Management Services,SME,Programme Expenditure
UK Statistics Family,Office for National Statistics,17/02/2023,Exp - Purchase Of Goods/Services - Contractors,DATA ENGINEERING OPERATIONS AND DELIVERY,Malikshaw Interim & Executive,257329," 18,072.00 ",Information Management Services,SME,Programme Expenditure
UK Statistics Family,Office for National Statistics,17/02/2023,Exp - Purchase Of Goods And Services Consultants,2023 CENSUS DATA TRANSFORMATION,The Sensible Code Company,257332," 126,549.60 ",Statistical Services,SME,Programme Expenditure
UK Statistics Family,Office for National Statistics,17/02/2023,Exp - Purchase Of Goods/Services - Incentive Payments,Covid Infection Survey,Sodexo Motivation Solutions U.K. ltd,257333," 133,755.60 ",Survey Response Incentive Vouchers,Large,Programme Expenditure
UK Statistics Family,Office for National Statistics,17/02/2023,IT (Owned) At Cost - Additions,IT Operations,Cdw Limited,257334," 95,332.86 ",Information Management Services,Large,Programme Expenditure
UK Statistics Family,Office for National Statistics,17/02/2023,Exp - Seconded UK Staff - Basic Salary,FAST STREAM RECHARGES - CABINET OFFICE,Cabinet Office,257338," 125,819.00 ",Fast Stream Services,Large,Programme Expenditure
UK Statistics Family,Office for National Statistics,20/02/2023,PPE - NON-PROPERTY (LEASED NON-PFI) - COST - ADDITIONS (AS LESSEE),IT Operations,Crown Hosting Data Centres Limited,257462," 61,236.54 ",Information Management Services,SME,Programme Expenditure
UK Statistics Family,Office for National Statistics,20/02/2023,End User Software And Hardware,IT Operations,Scc,257464," 1,078,491.22 ",Software Licenses,Large,Programme Expenditure
UK Statistics Family,Office for National Statistics,20/02/2023,Exp - Purchase Of Goods/Services - Contractors,Data Architecture,Certes Computing Ltd,257465," 8,400.00 ",Information Management Services,SME,Programme Expenditure
UK Statistics Family,Office for National Statistics,20/02/2023,Exp - Purchase Of Goods/Services - Contractors,Interviewer Management FiF,Certes Computing Ltd,257465," 18,000.00 ",Information Management Services,SME,Programme Expenditure
UK Statistics Family,Office for National Statistics,20/02/2023,Surveys,Crime Statistics,Kantar Public UK Ltd.,257469," 948,091.80 ",Statistical Services,SME,Programme Expenditure
UK Statistics Family,Office for National Statistics,20/02/2023,Telecoms,IT Operations,Cdw Limited,257471," 35,536.80 ",Information Management Services,Large,Programme Expenditure
UK Statistics Family,Office for National Statistics,21/02/2023,Telecoms,IT Operations,Bt Global Services,257612," 58,278.66 ",Telecommunications,Large,Programme Expenditure
UK Statistics Family,Office for National Statistics,21/02/2023,Exp - Purchase Of Goods/Services - IT Contractual Services,CDIO UNGP,CTS (Cloud Technology Solutions Ltd),257616," 177,019.20 ",Information Management Services,Large,Programme Expenditure
UK Statistics Family,Office for National Statistics,21/02/2023,Exp - Purchase Of Goods/Services - Incentive Payments,Survey Management,Sodexo Motivation Solutions U.K. ltd,257618," 2,493.03 ",Survey Response Incentive Vouchers,Large,Programme Expenditure
UK Statistics Family,Office for National Statistics,21/02/2023,Exp - Purchase Of Goods/Services - Incentive Payments,Survey Management,Sodexo Motivation Solutions U.K. ltd,257618," 2,531.95 ",Survey Response Incentive Vouchers,Large,Programme Expenditure
UK Statistics Family,Office for National Statistics,21/02/2023,Exp - Purchase Of Goods/Services - Incentive Payments,Survey Management,Sodexo Motivation Solutions U.K. ltd,257618," 2,140.46 ",Survey Response Incentive Vouchers,Large,Programme Expenditure
UK Statistics Family,Office for National Statistics,21/02/2023,Exp - Purchase Of Goods/Services - Incentive Payments,Survey Management,Sodexo Motivation Solutions U.K. ltd,257618," 29,706.46 ",Survey Response Incentive Vouchers,Large,Programme Expenditure
UK Statistics Family,Office for National Statistics,21/02/2023,Exp - Purchase Of Goods/Services - Incentive Payments,Survey Management,Sodexo Motivation Solutions U.K. ltd,257618," 6,303.63 ",Survey Response Incentive Vouchers,Large,Programme Expenditure
UK Statistics Family,Office for National Statistics,21/02/2023,Exp - Purchase Of Goods/Services - Incentive Payments,Survey Management,Sodexo Motivation Solutions U.K. ltd,257618," 1,576.20 ",Survey Response Incentive Vouchers,Large,Programme Expenditure
UK Statistics Family,Office for National Statistics,21/02/2023,Exp - Purchase Of Goods/Services - Incentive Payments,Interviewer Support,Sodexo Motivation Solutions U.K. ltd,257618, 73.99 ,Survey Response Incentive Vouchers,Large,Programme Expenditure
UK Statistics Family,Office for National Statistics,21/02/2023,Exp - Purchase Of Goods/Services - Incentive Payments,Survey Management,Sodexo Motivation Solutions U.K. ltd,257618, 189.84 ,Survey Response Incentive Vouchers,Large,Programme Expenditure
UK Statistics Family,Office for National Statistics,21/02/2023,Exp - Purchase Of Goods/Services - Incentive Payments,Survey Management,Sodexo Motivation Solutions U.K. ltd,257618," 8,532.82 ",Survey Response Incentive Vouchers,Large,Programme Expenditure
UK Statistics Family,Office for National Statistics,21/02/2023,Exp - Purchase Of Goods/Services - Incentive Payments,Social Surveys Division,Sodexo Motivation Solutions U.K. ltd,257618, 49.34 ,Survey Response Incentive Vouchers,Large,Programme Expenditure
UK Statistics Family,Office for National Statistics,21/02/2023,EXP - PURCHASE OF GOODS/SERVICES -  NON IT CONTRACTUAL PAYMENTS,Learning And Capability,Edenred (UK Group) Limited,257621," 100,163.88 ",Performance Reward Vouchers,Large,Programme Expenditure
UK Statistics Family,Office for National Statistics,21/02/2023,Other Goods And Services,Planning And Info Governance,Cabinet Office,257624," 5,364.00 ",Recruitment Services,Large,Programme Expenditure
UK Statistics Family,Office for National Statistics,21/02/2023,Exp - Seconded UK Staff - Basic Salary,FAST STREAM RECHARGES - CABINET OFFICE,Cabinet Office,257624," 136,993.00 ",Fast Stream Services,Large,Programme Expenditure
UK Statistics Family,Office for National Statistics,21/02/2023,Major Works Over 25K,Property Services,Faithful+Gould,257631," 30,208.60 ",Consultancy,SME,Programme Expenditure
UK Statistics Family,Office for National Statistics,21/02/2023,Exp - Purchase Of Goods/Services - Training & Development - Professional Membership Fees,Property London,Faithful+Gould,257631," 12,480.00 ",Consultancy,SME,Programme Expenditure
UK Statistics Family,Office for National Statistics,22/02/2023,EXP - PURCHASE OF GOODS/SERVICES -  NON IT CONTRACTUAL PAYMENTS,Best Practice And Impact,University of Southampton,257824," 42,865.15 ",Statistical Services,SME,Programme Expenditure
UK Statistics Family,Office for National Statistics,22/02/2023,Exp - Purchase Of Goods/Services - IT Contractual Services,CDIO UNGP,Microsoft Limited,257825," 85,428.00 ",Information Management Services,Large,Programme Expenditure
UK Statistics Family,Office for National Statistics,22/02/2023,Surveys,Crime Income And Wealth,Natcen Social Research,257827," 96,068.40 ",Statistical Services,Large,Programme Expenditure
UK Statistics Family,Office for National Statistics,22/02/2023,Exp - Purchase Of Goods/Services - Contractors,Testing,La International,257830," 8,639.65 ",Information Management Services,SME,Programme Expenditure
UK Statistics Family,Office for National Statistics,22/02/2023,Exp - Purchase Of Goods/Services - Contractors,Testing,La International,257830," 3,317.65 ",Information Management Services,SME,Programme Expenditure
UK Statistics Family,Office for National Statistics,22/02/2023,Exp - Purchase Of Goods/Services - Contractors,Data Architecture,La International,257830," 12,094.74 ",Information Management Services,SME,Programme Expenditure
UK Statistics Family,Office for National Statistics,22/02/2023,Exp - Purchase Of Goods/Services - Contractors,Data Architecture,La International,257830," 3,424.94 ",Information Management Services,SME,Programme Expenditure
UK Statistics Family,Office for National Statistics,22/02/2023,Exp - Purchase Of Goods/Services - Contractors,CLOUD ARCHITECTURE,La International,257830," 4,165.02 ",Information Management Services,SME,Programme Expenditure
UK Statistics Family,Office for National Statistics,22/02/2023,Exp - Purchase Of Goods/Services - Contractors,Tech Delivery Next Gen IT And Infrastructure,La International,257830," 3,844.62 ",Information Management Services,SME,Programme Expenditure
UK Statistics Family,Office for National Statistics,22/02/2023,Specialist User Software And Hardware,Security Operations,Computacenter (Uk) Limited,257833," 100,206.00 ",Software Licenses,Large,Programme Expenditure
UK Statistics Family,Office for National Statistics,22/02/2023,Exp - Purchase Of Goods/Services - Contractors,CDIO UNGP,Parity Resources Limited,257837," 4,600.50 ",Information Management Services,Large,Programme Expenditure
UK Statistics Family,Office for National Statistics,22/02/2023,Exp - Purchase Of Goods/Services - Contractors,Strategy And Architecture,Parity Resources Limited,257837," 4,210.50 ",Information Management Services,Large,Programme Expenditure
UK Statistics Family,Office for National Statistics,22/02/2023,Exp - Purchase Of Goods/Services - Contractors,Tech Delivery Legacy Sp,Parity Resources Limited,257837," 2,699.22 ",Information Management Services,Large,Programme Expenditure
UK Statistics Family,Office for National Statistics,22/02/2023,Exp - Purchase Of Goods/Services - Contractors,Tech Delivery Next Gen IT And Infrastructure,Parity Resources Limited,257837," 4,210.50 ",Information Management Services,Large,Programme Expenditure
UK Statistics Family,Office for National Statistics,22/02/2023,Exp - Short-Term Contract & Agency Staff - Full Cost,Interviewer Management FiF,Parity Resources Limited,257837," 8,583.56 ",Information Management Services,Large,Programme Expenditure
UK Statistics Family,Office for National Statistics,22/02/2023,Exp - Purchase Of Goods/Services - Census Field Costs,Interviewer Management FiF,Parity Resources Limited,257837," 1,379.39 ",Information Management Services,Large,Programme Expenditure
UK Statistics Family,Office for National Statistics,23/02/2023,Telecoms,IT Operations,Freedom Communications (UK) Ltd,257964," 32,650.33 ",Information Management Services,Large,Programme Expenditure
UK Statistics Family,Office for National Statistics,24/02/2023,Other Goods And Services,Crime Income And Wealth,Adzuna (Adhunter Ltd),258090," 34,650.00 ",Data Acquisition,Large,Programme Expenditure
UK Statistics Family,Office for National Statistics,24/02/2023,EXP - PURCHASE OF GOODS/SERVICES -  NON IT CONTRACTUAL PAYMENTS,People Solutions,Cabinet Office,258091," 233,384.40 ",Civil Service HR Costs,Large,Programme Expenditure
UK Statistics Family,Office for National Statistics,02/02/2023,Exp - Purchase Of Goods/Services - Incentive Payments,Covid Infection Survey,Sodexo Motivation Solutions U.K. ltd,30003968," 1,280,813.66 ",Survey Response Incentive Vouchers,Large,Programme Expenditure
UK Statistics Family,Office for National Statistics,06/02/2023,Surveys,Covid Infection Survey,IQVIA Limited,30003970," 1,487,086.69 ",Statistical Services,Large,Programme Expenditure
UK Statistics Family,Office for National Statistics,09/02/2023,Exp - Purchase Of Goods/Services - Incentive Payments,Covid Infection Survey,Sodexo Motivation Solutions U.K. ltd,30003977," 1,232,149.53 ",Survey Response Incentive Vouchers,Large,Programme Expenditure
UK Statistics Family,Office for National Statistics,13/02/2023,Stationery,Lodgecard,Royal Bank of Scotland,30003978," 5,178.66 ",Multiple Procurement Card Purchases  - Stationery ,Large,Programme Expenditure
UK Statistics Family,Office for National Statistics,13/02/2023,Other Goods And Services,GPC,Royal Bank of Scotland,30003978," 44,132.43 ",Multiple Procurement Card Purchases - other goods/services  ,Large,Programme Expenditure
UK Statistics Family,Office for National Statistics,17/02/2023,Exp - Purchase Of Goods/Services - Incentive Payments,Covid Infection Survey,Sodexo Motivation Solutions U.K. ltd,30003983," 1,226,430.46 ",Survey Response Incentive Vouchers,Large,Programme Expenditure
UK Statistics Family,Office for National Statistics,17/02/2023,Surveys,Covid Infection Survey,IQVIA Limited,30003984," 5,640,000.00 ",Statistical Services,Large,Programme Expenditure
UK Statistics Family,Office for National Statistics,21/02/2023,Electricity,Property Services,Edf Energy,30003989," 31,742.87 ",Utility Charges,Large,Programme Expenditure
UK Statistics Family,Office for National Statistics,21/02/2023,Electricity,Property Titchfield,Edf Energy,30003990," 26,325.04 ",Utility Charges,Large,Programme Expenditure
UK Statistics Family,Office for National Statistics,23/02/2023,Exp - Purchase Of Goods/Services - Incentive Payments,Covid Infection Survey,Sodexo Motivation Solutions U.K. ltd,30003995," 1,234,710.60 ",Survey Response Incentive Vouchers,Large,Programme Expenditure
UK Statistics Family,Office for National Statistics,28/02/2023,Exp - Purchase Of Goods And Services Consultants,Business Architecture Transformation And Statistical Strategy,Matt Hamnet & Associates Ltd,30004002," 97,902.00 ",Consultancy,SME,Programme Expenditure
UK Statistics Family,Office for National Statistics,28/02/2023,Surveys,Covid Infection Survey,IQVIA Limited,30004005," 1,562,192.18 ",Statistical Services,Large,Programme Expenditure
UK Statistics Family,Office for National Statistics,28/02/2023,Exp - Purchase Of Goods And Services Consultants,INTEGRATED DATA STRATEGY AND DELIVERY,Cabinet Office,30004006," 59,397.00 ",Consultancy,Large,Programme Expenditure
UK Statistics Family,Office for National Statistics,28/02/2023,Exp - Purchase Of Goods And Services Consultants,INTEGRATED DATA STRATEGY AND DELIVERY,Cabinet Office,30004007," 59,397.00 ",Consultancy,Large,Programme Expenditure
UK Statistics Family,Office for National Statistics,28/02/2023,Software Licences At Cost - Additions,IT Operations,Computacenter (Uk) Limited,30004008," 85,390.30 ",Software Licenses,Large,Programme Expenditure
UK Statistics Family,Office for National Statistics,28/02/2023,Specialist User Software And Hardware,Digital Media,Insight Direct,30004009," 59,875.32 ",Software Licenses,Large,Programme Expenditure
UK Statistics Family,Office for National Statistics,28/02/2023,Postage,REPROGRAPHICS,Pitney Bowes Ltd,30004010," 149,887.80 ",Postage Services,Large,Programme Expenditure
UK Statistics Family,Office for National Statistics,28/02/2023,Exp - Purchase Of Goods/Services - Incentive Payments,Survey Management,Sodexo Motivation Solutions U.K. ltd,30004011," 27,524.67 ",Survey Response Incentive Vouchers,Large,Programme Expenditure
UK Statistics Family,Office for National Statistics,28/02/2023,Exp - Purchase Of Goods/Services - IT Contractual Services,IT Operations,Somerford Associates,30004018," 29,250.00 ",Information Management Services,Large,Programme Expenditure
UK Statistics Family,Office for National Statistics,28/02/2023,FM Contract Payments,Vinci Payments,Vinci Construction UK Limited,30004019," 48,923.09 ",Facilities Mangement Services,Large,Programme Expenditure
UK Statistics Family,Office for National Statistics,28/02/2023,FM Contract Payments,Vinci Payments,Vinci Construction UK Limited,30004020," 33,656.95 ",Facilities Mangement Services,Large,Programme Expenditure
UK Statistics Family,Office for National Statistics,28/02/2023,Hosting,Social Survey Transformation Newport,Nisra,30004021," 300,000.00 ",Information Management Services,Large,Programme Expenditure
UK Statistics Family,Office for National Statistics,28/02/2023,EXP - PURCHASE OF GOODS/SERVICES - DATA ACQUISITION,Prices Division,Kantar Public UK Ltd.,30004022," 223,080.00 ",Statistical Services,SME,Programme Expenditure
UK Statistics Family,Office for National Statistics,27/02/2023,End User Software And Hardware,IT Operations,Cbs Netherlands - Central Bureau Voor Do Statistiek,90001102," 233,366.66 ",Software Licenses,Large,Programme Expenditure
,,,,,,,"25,991,827.94",,,
